bitfinex-derivatives/quotes_SOLF0:USTF0_20240904
["timestamp","ask_amount","ask_price","bid_price","bid_amount"]
[1725458411945,63.21,129.13,128.95,67.1557616]
[1725458412136,63.21,129.13,128.97,3.8771]
[1725458412334,63.21,129.13,128.96,1.0]
[1725458412632,0.0575104,129.06,129.04,0.05532321]
[1725458413039,1.4298,129.11,128.95,63.21]
[1725458413248,3.8738,129.09,129.01,3.8761]
[1725458413541,3.8738,129.09,128.95,3.96040119]
[1725458413542,0.04979531,129.06,129.04,0.04994918]
[1725458413746,0.04979531,129.06,128.95,63.21]
[1725458413941,2.40243305,129.1,129.04,0.0579639]
[1725458414141,0.0530407,129.08,128.95,63.21]
[1725458414347,1.02923305,129.09,128.98,63.21]
[1725458414549,0.05130679,129.03,129.02,63.21]
[1725458414735,1.02910816,129.1,129.02,63.21]
[1725458414941,0.05227792,129.07,129.05,0.05319611]
[1725458415247,3.8747,129.06,129.05,0.05319611]
[1725458415741,63.21,129.08,128.92,63.21]
[1725458415946,64.5682,129.05,128.9,63.21]
[1725458416144,64.5682,129.05,128.86,1.4264]
[1725458416145,1.02948155,129.04,128.86,64.6364]
[1725458416340,1.02948155,129.04,128.92,3.8786]
[1725458416647,0.05074563,128.99,128.97,0.05907075]
[1725458416844,0.05101702,128.99,128.87,1.3988]
[1725458417043,63.21,129.02,128.87,1.3988]
[1725458417240,0.05133694,128.94,128.92,0.05944736]
[1725458417547,0.05492102,128.94,128.92,0.05117456]
[1725458418543,3.8786,128.93,128.92,0.05117456]
[1725458419851,0.05492102,128.94,128.92,0.05117456]
[1725458419852,3.93322102,128.94,128.92,0.05117456]
[1725458420045,0.05492102,128.94,128.92,0.05117456]
[1725458421350,3.8786,128.93,128.92,0.05117456]
[1725458421653,0.05492102,128.94,128.92,0.05117456]
[1725458421846,3.8786,128.93,128.92,0.05117456]
[1725458422242,0.05492102,128.94,128.92,44.79117456]
[1725458423351,0.05492102,128.94,128.92,0.05117456]
[1725458424045,3.8786,128.93,128.92,0.05117456]
[1725458424248,0.05492102,128.94,128.92,0.05117456]
[1725458424548,3.8786,128.93,128.92,0.05117456]
[1725458425056,0.05492102,128.94,128.92,0.05117456]
[1725458426048,3.93342102,128.94,128.92,0.05117456]
[1725458426254,0.05492102,128.94,128.92,0.05117456]
[1725458426745,1.3758,129.03,128.93,44.74]
[1725458426949,1.03020637,129.02,128.93,44.74]
[1725458427146,45.77020637,129.02,128.9,46.0932]
[1725458427363,1.03021238,129.01,128.91,3.8791]
[1725458427546,1.03021238,129.01,128.9,46.0932]
[1725458427746,0.050059,128.97,128.92,44.74]
[1725458427949,0.050059,128.97,128.94,0.05272865]
[1725458428149,3.878,128.95,128.94,0.05272865]
[1725458428355,3.878,128.95,128.83,44.74]
[1725458428356,44.74,128.95,128.83,44.74]
[1725458428549,2.7574,128.94,128.82,1.3532]
[1725458428854,1.03092642,128.93,128.82,46.0932]
[1725458429156,44.74,128.92,128.82,1.3532]
[1725458429352,3.8809,128.86,128.82,1.3532]
[1725458429553,0.05858228,128.85,128.83,0.05087281]
[1725458429858,3.8813,128.84,128.83,0.05108817]
[1725458430059,3.8813,128.84,128.71,44.74]
[1725458430060,1.4237,128.84,128.71,44.74]
[1725458430262,1.4237,128.84,128.73,44.74]
[1725458430654,46.1637,128.84,128.73,44.74]
[1725458430850,1.4237,128.84,128.73,44.74]
[1725458431152,46.1637,128.84,128.77,0.05954525]
[1725458431354,0.0541367,128.8,128.77,0.05954525]
[1725458432657,3.8831,128.78,128.77,0.05954525]
[1725458433455,44.74,128.78,128.68,1.3229]
[1725458433661,11.59481821,128.83,128.69,48.67645637]
[1725458433662,52.478,128.81,128.69,48.67645637]
[1725458433848,1.03246466,128.8,128.68,1.3229]
[1725458434252,1.4237,128.84,128.73,44.74]
[1725458434462,1.03210662,128.83,128.71,48.56068967]
[1725458434658,0.05937341,128.8,128.77,0.05870601]
[1725458435455,3.80083021,128.9,128.78,44.74]
[1725458435663,1.03149402,128.89,128.79,3.94935135]
[1725458435955,1.03149402,128.89,128.78,1.333]
[1725458435956,10.61070503,129.04,128.85,44.74]
[1725458436164,46.0982,128.97,128.85,44.74]
[1725458436363,44.74,128.95,128.85,44.74]
[1725458436557,44.74,128.93,128.79,1.3129]
[1725458436780,0.05330381,128.87,128.85,0.04923369]
[1725458436963,0.05380561,128.87,128.85,0.04921306]
[1725458438473,3.8803,128.86,128.85,0.04921306]
[1725458438672,0.05380561,128.87,128.85,0.04921306]
[1725458439074,0.05380561,128.87,128.67,44.74]
[1725458439075,0.05380561,128.87,128.76,44.74]
[1725458439267,4.88502356,128.88,128.79,44.74]
[1725458439464,45.77154238,128.87,128.75,3.8835]
[1725458439667,45.77154238,128.87,128.74,44.74]
[1725458439866,1.03154238,128.86,128.74,48.61625126]
[1725458440174,44.74,128.8,128.79,0.05713547]
[1725458440377,44.74,128.8,128.67,44.74]
[1725458440573,52.478,128.8,128.67,44.74]
[1725458440866,1.03248601,128.79,128.67,48.6966102]
[1725458441068,1.03248601,128.79,128.71,44.74]
[1725458441275,44.74,128.84,128.73,44.74]
[1725458441474,0.04989431,128.76,128.74,0.05860405]
[1725458441672,44.74,128.84,128.73,44.74]
[1725458441673,44.74,128.84,128.73,1.3268]
[1725458441973,3.8827,128.78,128.77,0.0500946]
[1725458442181,3.96574047,128.8,128.66,1.399]
[1725458442182,3.96574047,128.8,128.71,44.74]
[1725458442477,3.96574047,128.8,128.72,44.74]
[1725458442478,3.8827,128.79,128.72,44.74]
[1725458442670,0.05917457,128.77,128.76,3.8833]
[1725458442871,0.0590757,128.78,128.75,0.05887201]
[1725458443067,0.05820071,128.78,128.75,1.49671904]
[1725458443266,0.05820071,128.78,128.76,1.3268]
[1725458443667,1.03180031,128.86,128.77,3.81611994]
[1725458443873,2.8059,128.93,128.77,3.81611994]
[1725458444075,1.03165093,128.87,128.76,5.11534008]
[1725458444378,1.03165093,128.87,128.76,1.3268]
[1725458444576,3.8817,128.82,128.76,1.3268]
[1725458444779,0.05880578,128.8,128.78,0.05681906]
[1725458444978,0.05861506,128.8,128.78,0.05681906]
[1725458445180,1.03181043,128.87,128.79,44.74]
[1725458445479,1.3874,128.9,128.79,44.74]
[1725458445670,1.03140138,128.89,128.77,1.3719]
[1725458445877,44.74,128.88,128.76,1.3268]
[1725458446077,1.03140138,128.87,128.76,46.0668]
[1725458446278,0.05437701,128.83,128.8,0.05235047]
[1725458446975,1.03140138,128.87,128.81,44.74]
[1725458447175,1.03152316,128.9,128.83,44.74]
[1725458447473,18.34870503,128.99,128.83,44.74]
[1725458447474,227.0,129.01,128.88,44.74]
[1725458447677,1.03069718,128.99,128.88,44.74]
[1725458447878,227.0,129.06,128.92,44.74]
[1725458448070,1.0304934,128.98,128.94,44.74]
[1725458448273,1.0304934,128.98,128.9,48.60951312]
[1725458448475,1.0304934,128.98,128.9,44.74]
[1725458448677,1.0304934,128.98,128.93,3.92777171]
[1725458448872,0.0587643,128.95,128.93,0.04977171]
[1725458450185,3.8779,128.94,128.93,0.04977171]
[1725458450385,4.90881754,128.94,128.93,0.04977171]
[1725458450587,4.90872775,128.94,128.93,0.04977171]
[1725458451084,1.03082775,128.94,128.82,44.74]
[1725458451288,1.03082775,128.94,128.85,3.8805]
[1725458451482,1.03082775,128.94,128.83,1.3915]
[1725458451896,0.05936968,128.9,128.87,0.05475621]
[1725458453081,44.79936968,128.9,128.87,0.05475621]
[1725458453384,3.8797,128.88,128.87,0.05475621]
[1725458454287,44.79936968,128.9,128.87,0.05475621]
[1725458455175,3.8797,128.88,128.87,0.05475621]
[1725458456086,49.65123362,128.88,128.87,0.05475621]
[1725458457981,4.91123362,128.88,128.87,0.05475621]
[1725458458388,45.77153362,128.88,128.78,1.3696]
[1725458458580,44.74,128.9,128.78,50.06976921]
[1725458458778,1.03135707,128.89,128.78,46.1096]
[1725458458985,1.03135707,128.89,128.8,44.74]
[1725458459182,1.4073,128.91,128.8,44.74]
[1725458459378,0.0541958,128.87,128.84,0.05905159]
[1725458460193,1.03104244,128.93,128.85,44.74]
[1725458460390,44.74,129.0,128.89,44.74]
[1725458460594,1.03076952,128.99,128.89,44.74]
[1725458461092,46.0939,129.02,128.89,44.74]
[1725458461093,3.8771,128.97,128.93,3.878]
[1725458461296,10.61070503,129.06,128.94,44.74]
[1725458461489,1.03018992,129.05,128.96,44.74]
[1725458461690,1.03018992,129.04,128.98,44.74]
[1725458461993,1.03018992,129.07,128.98,44.74]
[1725458462193,3.8742,129.07,128.98,44.74]
[1725458462403,0.0541434,129.04,129.01,0.05548348]
[1725458462697,3.8755,129.02,129.01,0.05836381]
[1725458462887,44.74,129.02,128.87,44.74]
[1725458463086,44.74,129.02,128.85,44.74]
[1725458463087,44.74,128.97,128.85,44.74]
[1725458463287,44.74,128.95,128.82,46.1671]
[1725458464001,0.05580979,128.9,128.88,0.04932884]
[1725458464188,48.56019271,128.97,128.9,3.8789]
[1725458464189,1.03055129,128.96,128.9,3.8789]
[1725458464387,44.74,128.99,128.9,3.8789]
[1725458464694,3.8773,128.97,128.92,3.8785]
[1725458464891,46.1096,129.01,128.89,44.74]
[1725458465099,1.03023127,129.0,128.89,48.67544937]
[1725458465300,0.05626079,128.96,128.93,44.79438051]
[1725458465495,227.0,129.04,128.93,44.79438051]
[1725458465699,44.74,129.02,128.94,3.8778]
[1725458465898,44.74,129.0,128.9,1.436]
[1725458466194,44.74,128.95,128.9,1.436]
[1725458466600,44.74,128.95,128.84,46.1168]
[1725458466601,0.05884087,128.94,128.91,0.05652791]
[1725458466805,0.05056036,128.94,128.91,0.05266728]
[1725458467299,3.8786,128.92,128.91,0.05266728]
[1725458467495,4.90970915,128.92,128.91,0.05266728]
[1725458468395,1.03110915,128.92,128.77,48.59352511]
[1725458468590,44.74,128.87,128.78,3.8827]
[1725458468797,3.8816,128.82,128.76,1.3768]
[1725458469005,52.478,128.87,128.77,3.94706857]
[1725458469198,44.74,128.91,128.8,44.74]
[1725458469390,44.74,128.91,128.84,0.05282435]
[1725458469391,0.05712775,128.87,128.84,0.05282435]
[1725458469897,3.8806,128.85,128.84,0.05282435]
[1725458470498,0.05712775,128.87,128.84,0.05282435]
[1725458471592,44.71,128.95,128.84,44.71]
[1725458471801,1.0309303,128.94,128.86,44.71]
[1725458472098,3.8784,128.93,128.86,44.71]
[1725458472406,1.3148,128.98,128.88,44.71]
[1725458472593,0.05274752,128.94,128.92,0.05905759]
[1725458473102,3.8805,128.86,128.79,44.71]
[1725458473306,89.42,128.93,128.81,3.8818]
[1725458473307,44.71,128.89,128.81,3.8818]
[1725458473499,44.71,128.87,128.78,1.3371]
[1725458473698,3.8811,128.84,128.78,1.3371]
[1725458473903,44.71,128.87,128.78,1.3371]
[1725458474108,0.05198469,128.84,128.81,0.05471563]
[1725458474295,3.8815,128.82,128.81,0.05471563]
[1725458475107,3.93308469,128.84,128.81,0.05471563]
[1725458475401,0.05198469,128.84,128.81,0.05471563]
[1725458475614,0.05198469,128.84,128.82,3.8813]
[1725458475908,0.95198209,128.88,128.79,3.79484391]
[1725458476108,0.95198209,128.88,128.78,44.71]
[1725458476308,53.39999237,128.87,128.77,2.8995]
[1725458476498,0.95199237,128.86,128.77,2.8995]
[1725458476807,3.8799,128.88,128.8,44.71]
[1725458477013,0.05085708,128.83,128.81,3.82512812]
[1725458477306,3.8803,128.87,128.82,44.71]
[1725458477500,46.1367,128.92,128.82,44.71]
[1725458477696,0.95148363,128.91,128.84,3.8807]
[1725458477898,46.1367,128.92,128.8,44.71]
[1725458478108,44.71,128.89,128.78,46.0766]
[1725458478300,0.057621,128.87,128.78,46.0766]
[1725458478500,0.05662796,128.84,128.81,0.05882011]
[1725458478704,0.05662796,128.84,128.81,0.05863788]
[1725458479500,3.93772796,128.84,128.81,0.05863788]
[1725458479711,0.05662796,128.84,128.81,0.05863788]
[1725458480212,3.8815,128.82,128.81,0.05863788]
[1725458480510,0.05662796,128.84,128.81,0.05863788]
[1725458480695,46.19676691,128.95,128.8,44.71]
[1725458480696,3.8801,128.87,128.8,44.71]
[1725458480903,44.71,128.91,128.8,44.71]
[1725458481099,3.8802,128.87,128.8,48.57299887]
[1725458481299,44.71,128.91,128.8,44.71]
[1725458481497,44.71,128.87,128.78,1.3666]
[1725458481706,3.82998842,128.86,128.81,0.04917144]
[1725458481900,44.76941651,128.84,128.81,0.04917144]
[1725458482107,44.76729271,128.84,128.81,0.05559581]
[1725458482311,3.8815,128.82,128.81,0.05559581]
[1725458482705,3.8815,128.83,128.81,0.05559581]
[1725458482911,0.05729271,128.84,128.81,0.05559581]
[1725458483914,3.8815,128.82,128.81,0.05559581]
[1725458484109,0.05729271,128.84,128.81,0.05559581]
[1725458484709,46.1367,128.92,128.8,46.137]
[1725458484903,44.71,128.89,128.8,1.427]
[1725458485204,44.71,128.85,128.77,1.4519]
[1725458485515,48.51591022,128.85,128.77,1.4519]
[1725458485810,0.05161831,128.82,128.8,0.05863338]
[1725458486516,3.882,128.81,128.8,0.05863338]
[1725458486714,0.05161831,128.82,128.8,0.05863338]
[1725458487212,44.71,128.89,128.8,0.05863338]
[1725458487508,4.83174155,128.88,128.8,46.0514]
[1725458487710,48.64756364,128.93,128.82,44.71]
[1725458487907,44.71,128.93,128.82,44.71]
[1725458488305,0.0507869,128.89,128.86,0.05238542]
[1725458488509,3.88,128.87,128.86,0.05238542]
[1725458489415,0.0507869,128.89,128.86,0.05238542]
[1725458489804,3.88,128.87,128.86,0.05238542]
[1725458490200,0.0507869,128.89,128.86,0.05238542]
[1725458491005,0.95127603,128.94,128.86,3.93641797]
[1725458491316,1.3811,128.97,128.87,46.145]
[1725458491607,3.8787,128.92,128.87,1.435]
[1725458491909,44.71,128.96,128.87,1.435]
[1725458492111,44.76270083,128.93,128.9,0.05599682]
[1725458492510,3.8788,128.91,128.9,0.05599682]
[1725458493608,0.05270083,128.93,128.9,0.05599682]
[1725458494017,3.93100083,128.93,128.9,1.43859682]
[1725458494219,0.05270083,128.93,128.9,1.43859682]
[1725458494608,3.8788,128.91,128.9,0.05599682]
[1725458494810,0.05270083,128.93,128.9,0.05599682]
[1725458495516,3.93100083,128.93,128.9,0.05599682]
[1725458496310,0.05270083,128.93,128.9,0.05599682]
[1725458496813,3.8788,128.91,128.9,0.05599682]
[1725458497210,0.05270083,128.93,128.9,0.05599682]
[1725458497811,0.9511355,128.98,128.91,44.71]
[1725458498021,44.71,129.02,128.91,44.71]
[1725458498318,0.95071615,129.01,128.91,44.71]
[1725458498708,0.0513748,128.97,128.91,44.71]
[1725458498908,0.0513748,128.97,128.95,0.05586508]
[1725458500615,3.8764,129.0,128.96,3.8773]
[1725458500817,44.71,129.04,128.96,3.8773]
[1725458501018,0.95055196,129.03,128.95,1.3525]
[1725458501218,44.71,129.01,128.95,1.3525]
[1725458501523,45.66055196,129.0,128.89,44.71]
[1725458501719,44.71,129.02,128.89,46.0625]
[1725458501921,0.05280239,128.96,128.93,44.76832162]
[1725458502123,0.05499271,128.96,128.93,3.93358178]
[1725458502319,0.05499271,128.96,128.93,0.05548178]
[1725458503024,0.05499271,128.96,128.93,48.63988981]
[1725458503320,44.71,129.04,128.93,44.76548178]
[1725458503321,0.95051028,129.03,128.93,44.76548178]
[1725458503514,0.95051028,129.03,128.91,44.71]
[1725458503713,3.8769,128.98,128.91,44.71]
[1725458503918,44.71,129.01,128.89,46.0625]
[1725458504122,0.9505752,129.0,128.94,0.05128637]
[1725458504323,3.94370129,128.99,128.94,0.05128637]
[1725458504626,44.71,129.01,128.94,0.05128637]
[1725458504837,44.71,128.98,128.94,0.05128637]
[1725458505121,44.71,128.96,128.95,0.05218349]
[1725458505323,44.71,128.96,128.94,0.04982319]
[1725458505538,44.71,128.96,128.87,3.88]
[1725458505823,44.71,128.94,128.9,0.05936865]
[1725458506020,1.3781,128.97,128.9,0.05936865]
[1725458506624,3.8779,128.94,128.9,3.93846865]
[1725458506830,1.3781,128.97,128.9,0.05936865]
[1725458507027,46.0881,128.97,128.9,0.05936865]
[1725458507722,46.0881,128.97,128.9,3.93836865]
[1725458507929,46.0881,128.97,128.9,0.05936865]
[1725458508428,3.8783,128.93,128.9,0.05936865]
[1725458508625,46.0881,128.97,128.9,0.05936865]
[1725458509126,44.71,128.93,128.9,0.05936865]
[1725458509525,3.8788,128.91,128.9,0.05936865]
[1725458510221,3.8805,128.86,128.81,5.2468]
[1725458510421,1.4468,128.9,128.81,1.3652]
[1725458510620,44.71,128.93,128.84,44.71]
[1725458510822,46.0672,128.96,128.89,3.8792]
[1725458511131,0.95139772,128.95,128.87,2.7741]
[1725458511327,0.05705888,128.92,128.9,0.05024881]
[1725458511827,3.93575888,128.92,128.9,0.05024881]
[1725458512228,0.05705888,128.92,128.9,0.05024881]
[1725458512426,3.8788,128.91,128.9,0.05024881]
[1725458513426,0.05705888,128.92,128.9,0.05024881]
[1725458513633,0.05705888,128.92,128.9,3.92924881]
[1725458513827,0.05705888,128.92,128.9,0.05024881]
[1725458514929,3.78441377,129.06,128.98,3.8767]
[1725458515234,1.3986,129.05,128.98,44.73]
[1725458515426,79.57042363,129.09,129.0,44.73]
[1725458515427,0.95020363,129.04,129.0,44.73]
[1725458515621,3.874,129.07,129.0,44.73]
[1725458515827,3.83943403,129.1,129.02,0.05363595]
[1725458516130,28.29521342,129.19,129.0,44.73]
[1725458516131,1.3525,129.15,129.05,0.05562399]
[1725458516339,0.94926581,129.14,129.09,0.05034716]
[1725458516635,44.73,129.17,129.09,0.05034716]
[1725458516840,0.94901703,129.16,129.12,0.0543022]
[1725458517044,1.3175,129.18,129.12,0.0543022]
[1725458517045,0.94901703,129.17,129.12,0.0543022]
[1725458517229,3.8714,129.16,129.12,0.0543022]
[1725458517436,1.3986,129.2,129.12,0.0543022]
[1725458517734,1.3986,129.2,129.15,0.05486862]
[1725458519035,3.8704,129.2,129.15,0.05486862]
[1725458519246,48.53163584,129.22,129.15,0.05486862]
[1725458519540,0.9484114,129.21,129.15,0.05486862]
[1725458519734,3.8706,129.19,129.15,0.05486862]
[1725458519933,48.53163584,129.22,129.15,0.05486862]
[1725458520135,3.8713,129.16,129.15,0.05486862]
[1725458520440,44.73,129.17,129.08,3.94206939]
[1725458520636,3.8713,129.16,129.1,3.8729]
[1725458520837,44.73,129.17,129.07,44.73]
[1725458521034,3.80163584,129.22,129.08,44.73]
[1725458521235,0.05530698,129.16,129.14,0.05496316]
[1725458521533,0.05408458,129.16,129.14,0.05488394]
[1725458521839,0.05408458,129.16,129.14,3.92668394]
[1725458522037,0.05408458,129.16,129.14,0.05488394]
[1725458522228,0.05408458,129.16,129.15,3.8716]
[1725458522428,67.8635632,129.26,129.14,44.73]
[1725458522631,44.73,129.3,129.19,44.73]
[1725458522828,2.6844,129.31,129.13,1.3948]
[1725458522829,0.94755859,129.29,129.21,44.73]
[1725458523028,44.73,129.33,129.21,44.73]
[1725458523240,0.94732033,129.32,129.25,44.73]
[1725458523435,3.866,129.34,129.29,3.8671]
[1725458524139,47.4144,129.37,129.27,3.99918175]
[1725458524342,0.94678745,129.36,129.27,3.94920241]
[1725458524539,0.94678745,129.36,129.31,0.05235675]
[1725458524741,44.73,129.39,129.31,0.05235675]
[1725458524942,0.94657483,129.38,129.31,0.05235675]
[1725458525135,44.73,129.42,129.31,0.05235675]
[1725458525335,3.8644,129.4,129.33,3.8662]
[1725458525537,0.94648252,129.39,129.29,44.73]
[1725458525739,4.73113522,129.41,129.25,48.68462288]
[1725458525740,0.94648291,129.41,129.35,0.05697141]
[1725458525941,0.94636004,129.4,129.35,0.05697141]
[1725458526148,0.94636004,129.4,129.3,44.73]
[1725458526444,0.94648291,129.41,129.36,0.04915998]
[1725458526748,0.94648291,129.41,129.37,0.0495734]
[1725458528237,44.73,129.4,129.37,0.0495734]
[1725458529035,3.8657,129.35,129.28,3.8677]
[1725458529239,3.8657,129.35,129.25,3.95462288]
[1725458529240,3.82104558,129.35,129.25,3.95462288]
[1725458529439,2.7568,129.4,129.25,44.73]
[1725458529642,3.8659,129.34,129.25,44.73]
[1725458529842,44.73,129.38,129.25,44.73]
[1725458529843,44.73,129.36,129.25,44.73]
[1725458530047,0.05266721,129.31,129.28,0.05459218]
[1725458530247,0.05266721,129.31,129.28,0.0499554]
[1725458531148,3.8674,129.29,129.28,0.0499554]
[1725458531644,0.05266721,129.31,129.28,0.0499554]
[1725458532043,44.73,129.32,129.2,5.20182892]
[1725458532242,3.78392177,129.34,129.23,44.73]
[1725458532445,3.87286424,129.41,129.23,44.73]
[1725458532446,0.94716276,129.33,129.23,44.73]
[1725458532738,4.88985536,129.34,129.23,44.73]
[1725458532938,3.8676,129.29,129.22,3.8693]
[1725458533145,44.73,129.31,129.24,0.04925236]
[1725458533343,44.78574712,129.29,129.26,0.05448062]
[1725458533547,3.8683,129.27,129.26,0.05448062]
[1725458534041,44.73,129.28,129.18,44.73]
[1725458534439,230.89714418,129.33,129.18,44.73]
[1725458534644,44.73,129.3,129.18,44.73]
[1725458534849,0.94761934,129.29,129.18,44.73]
[1725458535045,44.78915585,129.25,129.22,0.05375474]
[1725458535349,44.73,129.23,129.13,1.3076]
[1725458535552,7.759,129.23,129.13,5.24850768]
[1725458535745,7.759,129.23,129.14,3.8719]
[1725458535945,44.73,129.22,129.08,46.0438]
[1725458536149,44.73,129.2,129.08,46.0438]
[1725458536354,44.73,129.2,129.07,1.3093]
[1725458536355,0.0536293,129.16,129.14,0.0574361]
[1725458536549,44.73,129.15,129.05,3.7961458]
[1725458536754,44.73,129.15,129.04,44.73]
[1725458537250,44.73,129.13,129.02,44.73]
[1725458537451,3.8746,129.06,128.97,44.73]
[1725458537656,0.94934064,129.12,128.99,44.73]
[1725458538045,0.05933111,129.03,129.02,48.6053]
[1725458538252,0.05933111,129.03,129.02,44.73]
[1725458538454,44.73,129.13,129.02,44.73]
[1725458538657,0.04989709,129.04,129.02,44.73]
[1725458538850,44.73,129.15,129.03,44.73]
[1725458539052,0.94933227,129.16,129.05,44.73]
[1725458539350,0.94910392,129.15,129.06,3.84195023]
[1725458539546,0.94933227,129.16,129.06,3.84195023]
[1725458539951,0.05074747,129.12,129.1,0.04920109]
[1725458540150,0.05074747,129.12,129.1,44.77920109]
[1725458540454,0.94933227,129.16,129.1,48.65210109]
[1725458540655,0.94933227,129.16,129.1,44.77920109]
[1725458541051,0.94933227,129.16,129.12,44.73]
[1725458541245,0.94933227,129.16,129.14,44.73]
[1725458541451,0.05204169,129.15,129.14,48.6019]
[1725458541746,7.759,129.3,129.14,48.6019]
[1725458541747,44.73,129.28,129.14,44.78673994]
[1725458542051,3.8689,129.25,129.19,3.8701]
[1725458542250,52.489,129.3,129.18,44.73]
[1725458542452,0.94430525,129.29,129.22,44.73]
[1725458542656,48.63609622,129.35,129.22,48.67868003]
[1725458542852,0.87399326,129.34,129.22,48.67868003]
[1725458543154,3.92091193,129.3,129.27,0.05578392]
[1725458543347,0.05371193,129.3,129.27,0.05578392]
[1725458543556,0.05371193,129.3,129.12,3.92643981]
[1725458543747,44.73,129.31,129.19,44.73]
[1725458544066,44.73,129.31,129.19,48.63222497]
[1725458544251,44.73,129.31,129.19,44.73]
[1725458544553,0.87416004,129.3,129.2,3.81047623]
[1725458544750,0.05545994,129.26,129.24,0.05191012]
[1725458544960,0.05943512,129.26,129.24,0.05874821]
[1725458545460,3.8686,129.25,129.24,0.05874821]
[1725458545657,3.87014397,129.25,129.13,47.4456]
[1725458545954,3.8699,129.21,129.15,3.8714]
[1725458546161,44.73,129.23,129.13,47.4456]
[1725458546454,3.8703,129.2,129.13,47.4456]
[1725458546865,0.04903444,129.18,129.15,0.04937423]
[1725458547059,0.04903444,129.18,129.16,3.8712]
[1725458547361,1.3244,129.27,129.15,44.78117214]
[1725458547655,1.3244,129.27,129.18,3.8706]
[1725458548353,3.8691,129.24,129.19,3.8704]
[1725458548659,0.05918315,129.23,129.2,0.05713935]
[1725458549954,0.05918315,129.23,129.2,44.78713935]
[1725458550348,0.05918315,129.23,129.2,0.05713935]
[1725458550553,0.05918315,129.23,129.2,44.78713935]
[1725458550856,2.757,129.31,129.13,2.7156]
[1725458550857,3.8669,129.31,129.26,3.8681]
[1725458551047,44.73,129.34,129.22,44.73]
[1725458551252,45.60402343,129.32,129.2,3.82277307]
[1725458551452,45.60402343,129.32,129.24,3.8689]
[1725458551453,3.8675,129.29,129.24,3.8689]
[1725458551652,0.05546574,129.28,129.25,0.04999595]
[1725458552452,3.8683,129.26,129.25,0.04999595]
[1725458553662,0.05546574,129.28,129.25,0.04999595]
[1725458553663,3.92326574,129.28,129.25,0.04999595]
[1725458553864,0.05546574,129.28,129.25,0.04999595]
[1725458554256,0.05546574,129.28,129.26,3.8681]
[1725458554457,0.05546574,129.28,129.25,44.77999595]
[1725458554658,3.92336574,129.28,129.25,0.04999595]
[1725458554858,0.05546574,129.28,129.25,0.04999595]
[1725458555261,0.05546574,129.28,129.25,3.91839595]
[1725458555463,0.05546574,129.28,129.25,0.04999595]
[1725458555861,3.8682,129.27,129.25,0.04999595]
[1725458556060,0.05546574,129.28,129.25,0.04999595]
[1725458556462,3.8683,129.26,129.25,0.04999595]
[1725458556656,0.05546574,129.28,129.25,0.04999595]
[1725458556865,3.92316574,129.28,129.25,0.04999595]
[1725458557372,3.8683,129.26,129.25,0.04999595]
[1725458558366,3.8697,129.22,129.16,44.73]
[1725458558666,44.73,129.25,129.14,48.67032045]
[1725458558860,44.73,129.25,129.14,44.73]
[1725458559063,3.8699,129.21,129.14,44.73]
[1725458559272,3.87413886,129.26,129.16,44.73]
[1725458559456,0.05162077,129.22,129.2,0.05423278]
[1725458559661,0.0572788,129.22,129.2,0.05742721]
[1725458560163,0.0572788,129.22,129.2,3.92752721]
[1725458560367,0.0572788,129.22,129.2,0.05742721]
[1725458560763,3.8698,129.21,129.2,0.05742721]
[1725458561367,0.0572788,129.22,129.2,0.05742721]
[1725458562068,0.0572788,129.22,129.2,3.92732721]
[1725458562256,0.0572788,129.22,129.2,0.05742721]
[1725458562673,1.344,129.29,129.2,44.73]
[1725458562965,44.73,129.33,129.22,44.73]
[1725458563169,3.8673,129.3,129.26,3.8681]
[1725458563368,3.91900731,129.31,129.2,1.423]
[1725458563569,44.73,129.31,129.2,1.423]
[1725458563773,0.04935645,129.27,129.24,0.04934245]
[1725458564775,3.8686,129.25,129.24,0.04934245]
[1725458565073,0.04935645,129.27,129.24,0.04934245]